bitfinex/quotes_ETHUSD_20240618
["timestamp","ask_amount","ask_price","bid_price","bid_amount"]
[1718673254349,3.0,3466.8,3466.1,0.52805941]
[1718673254570,3.0,3466.8,3466.2,10.11715]
[1718673254768,3.0,3466.8,3466.3,1.44401598]
[1718673254982,7.43,3466.9,3466.3,1.44401598]
[1718673255762,4.23966291,3467.2,3466.3,1.44401598]
[1718673255963,3.0,3467.1,3466.3,1.44401598]
[1718673256260,3.0,3467.1,3466.3,0.03329703]
[1718673256261,2.041,3466.8,3466.3,0.03329703]
[1718673256501,1.35966291,3466.7,3466.3,0.03329703]
[1718673256698,2.041,3466.4,3465.3,7.1089]
[1718673257000,2.041,3466.4,3465.4,0.03207284]
[1718673257001,1.9085345,3466.3,3465.4,0.03207284]
[1718673257211,2.041,3466.0,3465.4,0.03207284]
[1718673257507,0.55,3465.9,3464.9,6.7578]
[1718673257678,0.55,3465.9,3465.5,0.03207284]
[1718673257876,3.55,3465.9,3464.9,6.7578]
[1718673258087,3.55,3465.9,3465.6,0.03207284]
[1718673258278,3.55,3465.9,3464.9,9.64388]
[1718673258474,3.55,3465.9,3465.7,0.03207284]
[1718673258676,3.0,3465.9,3465.5,2.88557]
[1718673258877,3.0,3465.9,3465.3,2.88573]
[1718673258878,3.0,3466.3,3465.4,2.88566]
[1718673259090,3.0,3466.3,3465.6,0.03207284]
[1718673259268,3.0,3466.3,3465.4,2.9433657]
[1718673259463,3.0,3466.3,3465.7,0.03207284]
[1718673259664,3.0,3466.5,3465.6,2.88549]
[1718673259882,1.3585345,3466.6,3465.8,0.03207284]
[1718673260078,0.55,3466.5,3465.6,2.88549]
[1718673260367,0.55,3466.5,3465.7,0.03207284]
[1718673260565,1.9085345,3466.5,3465.5,3.46848957]
[1718673260873,3.3995345,3466.4,3465.6,0.03207284]
[1718673261095,4.9085345,3466.3,3465.6,0.03207284]
[1718673261292,4.9085345,3466.3,3465.1,2.88583]
[1718673261491,1.3585345,3466.2,3465.7,0.03207284]
[1718673261679,1.3585345,3466.2,3465.1,2.88583]
[1718673261680,1.3585345,3466.2,3465.2,0.05770865]
[1718673261880,5.40757606,3466.3,3465.3,0.29435387]
[1718673262199,1.3585345,3466.2,3465.3,0.32642671]
[1718673262587,3.55,3466.3,3465.3,0.32642671]
[1718673262785,4.90859534,3466.3,3465.3,0.32642671]
[1718673263023,3.55,3466.3,3465.3,0.32642671]
[1718673263205,3.55,3466.3,3465.3,0.03207284]
[1718673263383,5.285,3466.3,3464.9,8.010812]
[1718673263590,5.041,3466.0,3465.0,0.03218848]
[1718673263833,2.041,3465.6,3465.0,0.03218848]
[1718673264135,0.55,3465.5,3464.4,9.97332]
[1718673264320,0.55,3465.5,3465.1,0.03111938]
[1718673264526,0.55,3465.5,3464.5,1.29777851]
[1718673264833,0.55,3465.5,3464.5,4.18417851]
[1718673265016,0.55,3465.5,3464.6,0.03111938]
[1718673265203,2.041,3465.6,3464.7,2.88624]
[1718673265444,3.0,3465.6,3464.8,0.77364085]
[1718673265728,3.0,3465.6,3464.8,0.74704513]
[1718673265940,0.55,3465.5,3464.8,0.03111938]
[1718673266300,0.55,3465.5,3464.5,1.29777851]
[1718673266515,3.55,3465.5,3464.9,0.03111938]
[1718673266840,3.55,3465.5,3464.5,1.29777851]
[1718673267043,4.90755059,3465.5,3464.5,1.29777851]
[1718673267339,4.90755059,3465.5,3464.6,0.03111938]
[1718673267340,1.35755059,3465.3,3464.6,0.03111938]
[1718673267526,0.55,3465.2,3464.6,0.03111938]
[1718673267839,0.55,3465.2,3464.7,0.03111938]
[1718673268207,0.55,3465.2,3464.4,7.0869]
[1718673268409,0.55,3465.2,3464.5,0.03111938]
[1718673268613,0.55,3465.2,3464.5,1.04336783]
[1718673269334,0.55,3465.3,3464.5,1.04336783]
[1718673269546,1.90755059,3465.3,3464.5,1.04336783]
[1718673269720,0.55,3465.3,3464.5,1.04336783]
[1718673270210,1.9078588,3465.4,3464.5,0.03111938]
[1718673270852,1.3578588,3465.3,3464.5,0.03111938]
[1718673271007,0.55,3465.2,3464.5,0.03111938]
[1718673271433,0.55,3465.3,3464.5,0.03111938]
[1718673272126,0.55,3465.4,3464.5,0.03111938]
[1718673272330,0.55,3465.4,3464.5,1.04335983]
[1718673272726,0.55,3465.4,3464.5,0.03111938]
[1718673273048,1.9078588,3465.4,3464.5,0.03111938]
[1718673274244,5.041,3465.2,3464.5,0.03111938]
[1718673274545,0.55,3465.1,3464.5,0.03111938]
[1718673274729,5.64731577,3465.1,3464.5,0.03111938]
[1718673275051,3.55,3465.1,3464.3,0.1178051]
[1718673275344,2.041,3464.8,3464.6,0.03142258]
[1718673275504,2.041,3464.8,3464.3,0.1178051]
[1718673275505,0.55,3464.7,3464.3,0.1178051]
[1718673275714,0.4326,3464.6,3464.3,0.1178051]
[1718673275902,2.041,3464.4,3464.3,0.1178051]
[1718673276126,2.591,3464.4,3464.3,0.1178051]
[1718673277344,0.55,3464.4,3464.3,0.1178051]
[1718673277651,0.55,3464.5,3464.3,0.1178051]
[1718673278547,0.55,3464.6,3464.3,0.1178051]
[1718673280813,3.0,3464.7,3464.3,0.1178051]
[1718673281431,0.55,3464.6,3464.3,0.1178051]
[1718673281629,2.591,3464.6,3464.3,0.1178051]
[1718673281938,3.0,3464.5,3464.3,0.1178051]
[1718673282134,3.55,3464.4,3464.3,0.1178051]
[1718673282542,16.898892,3464.4,3464.3,0.1178051]
[1718673282870,8.780386,3464.4,3464.3,0.1178051]
[1718673283739,5.230386,3464.4,3464.3,0.1178051]
[1718673283931,3.0,3464.5,3464.3,0.1178051]
[1718673284337,5.041,3464.6,3464.3,0.1178051]
[1718673284834,9.77712696,3470.5,3464.3,0.1178051]
[1718673284835,1.35751017,3465.1,3464.3,0.1178051]
[1718673285039,1.35751017,3465.4,3464.4,0.03234804]
[1718673285235,3.0,3465.2,3464.4,0.03234804]
[1718673285780,2.041,3465.1,3464.4,0.03234804]
[1718673286071,5.041,3465.1,3464.4,0.03234804]
[1718673286236,0.55,3465.0,3464.4,0.03234804]
[1718673286785,0.55,3465.1,3464.4,0.03234804]
[1718673286970,2.285,3465.1,3464.4,0.03234804]
[1718673287279,2.041,3464.8,3464.4,0.03234804]
[1718673287452,0.88989546,3464.7,3464.4,0.03234804]
[1718673288155,8.7617,3464.6,3464.4,0.03234804]
[1718673288350,2.285,3464.5,3464.4,0.03234804]
[1718673288577,5.78438887,3464.5,3464.3,0.1178051]
[1718673288780,2.041,3464.4,3464.3,0.1178051]
[1718673288981,6.35981152,3464.4,3464.3,0.1178051]
[1718673289296,6.85920039,3464.4,3464.3,0.1178051]
[1718673289502,6.35981152,3464.4,3464.3,0.1178051]
[1718673289712,11.56507352,3464.4,3464.3,0.1178051]
[1718673289857,12.06446239,3464.4,3464.3,0.1178051]
[1718673290056,11.48746239,3464.4,3464.3,0.1178051]
[1718673290371,10.21095939,3464.4,3464.3,0.1178051]
[1718673291531,9.71157052,3464.4,3464.3,0.1178051]
[1718673291688,10.21095939,3464.4,3464.3,0.1178051]
[1718673292312,18.70075939,3464.4,3464.3,0.1178051]
[1718673294899,16.65975939,3464.4,3464.3,0.1178051]
[1718673295595,16.96046001,3464.4,3464.3,0.1178051]
[1718673300501,16.96046001,3464.4,3464.3,0.39666591]
[1718673301622,16.96062494,3464.4,3464.3,0.39666591]
[1718673302720,9.65582494,3464.4,3464.3,0.39666591]
[1718673303020,13.42845962,3464.4,3464.3,0.39666591]
[1718673303318,13.92801342,3464.4,3464.3,0.39666591]
[1718673304439,14.47801342,3464.4,3464.3,0.39666591]
[1718673304612,12.43701342,3464.4,3464.3,0.39666591]
[1718673306888,14.47801342,3464.4,3464.3,0.39666591]
[1718673307726,14.47801342,3464.4,3464.3,0.39179945]
[1718673308020,0.80025442,3464.4,3464.3,0.39179945]
[1718673308329,5.041,3464.9,3464.3,0.42405957]
[1718673308623,1.35772321,3464.4,3464.3,0.39179945]
[1718673308826,1.35772321,3464.4,3464.3,0.42402363]
[1718673309423,1.35772321,3464.5,3464.3,0.42402363]
[1718673309623,1.35772321,3464.5,3464.3,0.39179945]
[1718673310003,1.35772321,3464.4,3464.3,0.39179945]
[1718673310339,3.94872321,3464.4,3464.3,0.39179945]
[1718673310621,5.591,3464.4,3464.3,0.39179945]
[1718673310821,5.98587232,3464.4,3464.3,0.39179945]
[1718673311029,29.03562632,3464.4,3464.3,0.39179945]
[1718673311228,29.53518012,3464.4,3464.3,0.39179945]
[1718673311416,28.10221012,3464.4,3464.3,0.39179945]
[1718673311615,8.82999412,3464.4,3464.3,0.39179945]
[1718673312193,8.4351218,3464.4,3464.3,0.39179945]
[1718673312840,8.0243868,3464.4,3464.3,0.39179945]
[1718673313204,8.02432936,3464.4,3464.3,0.39179945]
[1718673313719,7.244833,3464.4,3464.3,0.39179945]
[1718673314508,8.979833,3464.4,3464.3,0.39179945]
[1718673314697,9.28027257,3464.4,3464.3,0.39179945]
[1718673315015,9.77975973,3464.4,3464.3,0.39179945]
[1718673315197,3.0,3463.6,3462.3,6.8423]
[1718673315398,3.0,3463.6,3462.5,6.8423]
[1718673315399,1.35660957,3463.4,3462.5,6.8423]
[1718673315626,1.35660957,3463.7,3462.9,2.88773]
[1718673315831,1.35660957,3464.0,3463.2,7.1828]
[1718673316139,0.49948716,3464.5,3463.9,7.1828]
[1718673316305,1.35722542,3465.2,3464.5,7.1828]
[1718673316504,0.49948716,3465.4,3464.7,2.88624]
[1718673316505,1.35722542,3465.4,3464.7,2.88624]
[1718673316807,0.04981956,3466.4,3465.0,7.4613]
[1718673316808,1.35722542,3465.6,3465.0,7.4613]
[1718673317004,5.041,3466.4,3465.1,0.05771088]
[1718673317316,2.041,3466.0,3465.1,0.05771088]
[1718673317721,2.041,3466.0,3465.2,0.03190872]
[1718673317921,2.041,3466.0,3465.3,0.05771089]
[1718673318099,2.88,3466.3,3465.3,0.05770861]
[1718673318604,2.88,3466.3,3465.4,0.03190872]
[1718673318811,3.0,3466.2,3465.4,0.03190872]
[1718673319213,3.0,3466.2,3465.4,0.08961674]
[1718673319412,2.88,3466.3,3465.4,0.46266961]
[1718673319608,2.88,3466.3,3465.6,7.466]
[1718673319822,2.88,3466.3,3465.7,0.05770119]
[1718673319999,4.921,3466.3,3465.6,7.466]
[1718673320198,3.0,3466.0,3464.6,3.8932]
[1718673320404,2.041,3465.9,3464.7,7.49057672]
[1718673320618,2.041,3465.9,3464.7,6.81260872]
[1718673320619,2.041,3465.5,3464.7,6.81260872]
[1718673320837,0.55,3465.4,3464.7,6.81260872]
[1718673321038,3.55,3465.4,3464.7,6.81260872]
[1718673321808,2.041,3465.0,3464.7,0.03190872]
[1718673322150,2.041,3465.0,3464.2,6.7807]
[1718673322337,4.296426,3464.9,3464.8,0.02990709]
[1718673322650,4.296426,3464.9,3463.6,0.05773521]
[1718673322651,3.0,3464.8,3463.6,0.05773521]
[1718673322944,0.55,3464.7,3463.7,0.03016231]
[1718673323117,2.041,3464.5,3463.7,0.03016231]
[1718673323307,3.55,3464.4,3463.5,6.7807]
[1718673323511,3.0,3464.3,3463.8,0.02957982]
[1718673323750,3.0,3464.3,3463.5,6.7807]
[1718673323950,0.55,3464.2,3462.6,6.7698]
[1718673324246,0.55,3464.2,3462.7,0.02957982]
[1718673325147,3.0,3464.0,3462.7,0.02957982]
[1718673325355,3.55,3463.9,3462.7,0.02957982]
[1718673326036,3.55,3463.9,3462.7,0.08733418]
[1718673326612,1.735,3463.8,3462.7,0.02957982]
[1718673326844,0.55,3463.7,3462.7,0.02957982]
[1718673327345,4.735,3463.2,3462.7,0.02957982]
[1718673327714,1.735,3463.0,3462.0,7.3856]
[1718673327912,0.55,3462.9,3462.8,0.0274781]
[1718673328127,0.55,3462.9,3462.0,7.3856]
[1718673328341,3.884089,3462.9,3462.0,7.3856]
[1718673328642,3.0,3462.8,3462.1,0.02656216]
[1718673328847,0.55,3462.7,3462.1,0.02656216]
[1718673329248,0.55,3463.0,3462.1,0.02656216]
[1718673329471,0.55,3463.0,3462.0,7.3856]
[1718673330820,0.84971222,3463.0,3462.0,7.3856]
[1718673333052,0.84971222,3463.0,3462.1,0.05776093]
[1718673333232,0.84971222,3463.0,3462.2,1.03319309]
[1718673333556,0.84971222,3463.0,3462.0,7.3856]
[1718673334121,0.84971222,3463.0,3462.1,0.05776108]
[1718673334523,0.84971222,3463.0,3462.0,7.3856]
[1718673334820,0.84971222,3463.0,3462.1,0.05776112]
[1718673335252,0.84971222,3463.0,3462.0,7.3856]
[1718673335625,2.58471222,3463.0,3462.0,7.3856]
[1718673335825,3.0,3462.9,3462.0,7.3856]
[1718673336057,0.55,3462.8,3462.0,7.3856]
[1718673336424,5.725,3462.5,3461.2,7.181]
[1718673336641,3.55,3462.4,3461.3,0.7181]
[1718673338364,3.55,3462.4,3461.2,7.181]
[1718673338887,3.0,3462.1,3460.8,7.5419051]
[1718673339185,3.0,3462.0,3460.8,7.5419051]
[1718673339400,3.0,3461.7,3460.8,7.5419051]
[1718673339673,3.0,3461.6,3460.8,7.5419051]
[1718673339829,0.55,3461.5,3460.8,0.1178051]
[1718673340997,3.0,3461.6,3460.8,0.1178051]
[1718673341150,3.0,3461.6,3460.9,7.337]
[1718673341339,3.0,3461.6,3460.9,8.08248051]
[1718673341745,3.0,3461.6,3460.9,7.337]
[1718673342854,0.55,3461.5,3460.9,7.337]
[1718673343061,0.55,3461.5,3460.8,0.1178051]
[1718673343267,2.285,3461.5,3460.8,0.1178051]
[1718673344079,4.735,3461.3,3460.8,0.1178051]
[1718673344252,3.0,3460.9,3460.8,0.1178051]
[1718673344533,7.735,3460.9,3460.8,0.1178051]
[1718673344763,18.323536,3460.9,3460.8,0.1178051]
[1718673344938,18.323536,3460.9,3459.5,6.9673]
[1718673344939,3.0,3460.3,3459.5,6.9673]
[1718673345138,3.55,3460.2,3459.5,6.9673]
[1718673346637,5.285,3460.2,3458.9,7.451]
[1718673347055,3.0,3459.5,3458.3,2.89159]
[1718673347377,3.0,3459.5,3458.2,7.451]
[1718673347378,0.55,3459.4,3458.9,0.005]
[1718673347680,3.55,3459.4,3458.9,0.005]
[1718673347877,0.55,3459.4,3458.9,0.005]
[1718673348091,3.55,3459.4,3458.9,0.005]
[1718673349478,4.735,3459.1,3458.9,0.005]
[1718673349686,5.285,3459.0,3458.9,0.005]
[1718673349983,7.75387,3459.0,3458.9,0.005]
[1718673350856,7.451714,3459.0,3458.9,0.005]
[1718673351268,5.285,3459.0,3458.9,0.005]
[1718673351484,3.0,3459.0,3458.9,0.005]
[1718673353254,3.55,3459.0,3458.9,0.005]
[1718673353640,10.003192,3459.0,3458.9,0.005]
[1718673353881,9.65699,3459.0,3458.9,0.005]
[1718673354393,4.735,3458.7,3457.4,0.1178051]
[1718673354546,4.735,3457.5,3457.4,0.1178051]
[1718673355073,3.0,3457.5,3457.4,0.1178051]
[1718673355278,3.0,3457.6,3457.4,0.1178051]
[1718673355583,3.0,3458.1,3457.4,0.1178051]
[1718673355787,3.55,3458.1,3457.4,0.1178051]
[1718673355983,2.725,3457.8,3457.4,0.1178051]
[1718673356344,3.0,3458.1,3457.4,0.1178051]
[1718673357059,2.89,3458.4,3457.4,0.17564957]
[1718673357260,1.735,3458.7,3457.4,0.1178051]
[1718673357598,7.1638,3459.4,3457.4,0.1178051]
[1718673357599,1.735,3458.3,3457.4,0.1178051]
[1718673358465,0.55,3458.2,3457.4,0.1178051]
[1718673359710,0.29926847,3458.6,3457.4,3.0101251]
[1718673359867,3.29926847,3458.6,3457.6,6.8449]
[1718673360066,3.0,3458.6,3457.7,0.05783904]
[1718673360267,2.725,3459.0,3457.7,2.94991904]
[1718673360476,2.725,3459.0,3457.8,0.9794819]
[1718673360716,0.2990436,3459.0,3457.9,2.89191]
[1718673360866,0.2990436,3459.0,3458.0,0.05782458]
[1718673361216,3.94451254,3459.7,3458.5,2.89141]
[1718673361380,3.94451254,3459.7,3458.4,6.5849]
[1718673361569,3.94451254,3459.7,3458.5,1.00547232]
[1718673361999,1.21951254,3459.7,3458.8,2.89114]
[1718673362220,1.21951254,3459.7,3458.9,0.05781535]
[1718673362391,5.725,3460.2,3459.1,2.8909]
[1718673362392,2.725,3460.2,3459.1,2.8909]
[1718673362571,2.725,3460.2,3459.2,0.05781094]
[1718673362773,2.725,3460.2,3459.2,0.29487109]
[1718673362969,2.725,3459.7,3458.5,0.94765]
[1718673363415,2.725,3459.7,3458.6,2.89132]
[1718673363623,3.29943704,3460.1,3458.8,2.89116]
[1718673363775,3.29943704,3460.1,3459.2,2.89082]
[1718673364117,5.725,3460.7,3459.3,0.05780813]
[1718673364277,5.725,3460.7,3459.0,7.0683]
[1718673364608,0.29946096,3460.6,3459.1,0.05780858]
[1718673365123,3.0,3460.3,3459.0,7.0683]
[1718673365415,3.0,3459.9,3459.0,7.0683]
[1718673365909,3.0,3459.9,3458.3,6.7292]
[1718673366078,3.0,3459.5,3458.3,6.7292]
[1718673366405,0.55,3459.4,3458.3,6.7292]
[1718673366606,3.55,3459.4,3458.3,6.7292]
[1718673366906,3.0,3459.1,3457.7,7.59471305]
[1718673367068,3.55,3459.0,3457.7,7.59471305]
[1718673367268,3.55,3459.0,3457.7,7.97335638]
[1718673367508,3.55,3459.0,3457.7,6.9907]
[1718673368087,3.55,3459.0,3457.7,7.59471305]
[1718673368494,5.725,3458.7,3457.7,0.60401305]
[1718673368808,5.725,3458.7,3457.4,0.1178051]
[1718673368809,3.0,3458.3,3457.4,0.1178051]
[1718673369015,0.3,3458.2,3457.4,0.1178051]
[1718673369205,3.85,3458.2,3457.4,0.1178051]
[1718673369786,6.8488,3458.1,3457.4,0.1178051]
[1718673369987,3.0,3457.6,3457.4,0.1178051]
[1718673370207,2.725,3457.7,3457.4,0.1178051]
[1718673370412,0.96690753,3457.6,3457.4,0.1178051]
[1718673370611,3.0,3458.0,3457.4,0.1178051]
[1718673370797,3.0,3458.1,3457.4,0.1178051]
[1718673371003,1.735,3458.2,3457.4,0.1178051]
[1718673371202,1.735,3458.0,3457.4,0.1178051]
[1718673371519,2.285,3457.9,3457.4,0.1178051]
[1718673371679,0.2835,3457.8,3457.4,0.1178051]
[1718673371883,1.735,3457.6,3457.4,0.1178051]
[1718673372098,5.285,3457.7,3457.4,0.1178051]
[1718673372991,8.01,3457.7,3457.4,0.1178051]
[1718673373191,1.735,3457.5,3457.4,0.1178051]
[1718673373390,0.55,3457.5,3457.4,0.1178051]
[1718673374889,0.2988914,3457.6,3457.4,0.1178051]
[1718673375110,1.735,3457.9,3457.4,0.1178051]
[1718673375318,0.55,3457.8,3457.4,0.1178051]
[1718673376221,0.29861432,3458.0,3457.4,0.1178051]
[1718673376415,2.725,3458.7,3457.5,0.05784305]
[1718673376416,0.50043159,3458.7,3457.5,0.05784305]
[1718673376599,0.50043159,3459.1,3457.6,2.89215]
[1718673376800,7.43,3459.2,3457.7,2.94991209]
[1718673377017,7.43,3459.2,3457.8,0.0578318]
[1718673377196,9.165,3459.2,3458.0,0.60401305]
[1718673377377,9.165,3459.2,3458.1,0.66184485]
[1718673377579,7.43,3459.2,3458.4,6.6845]
[1718673377815,3.0,3459.9,3458.6,0.60401305]
[1718673378183,1.735,3459.8,3458.5,0.60401305]
[1718673378613,1.735,3459.8,3458.6,0.60401305]
[1718673378990,1.735,3459.8,3458.7,0.60401305]
[1718673379317,7.43,3460.2,3458.9,0.60401305]
[1718673379504,7.43,3460.2,3459.2,0.60401305]
[1718673379704,7.43,3460.2,3459.3,0.60401305]
[1718673379879,1.735,3460.3,3459.2,0.60401305]
[1718673380083,1.735,3460.3,3459.3,0.15100326]
[1718673380293,1.735,3460.3,3459.0,0.60401305]
[1718673380518,1.735,3460.3,3459.1,0.05781153]
[1718673380732,2.18806317,3460.4,3459.1,0.05781153]
[1718673380883,2.18806317,3460.4,3459.1,3.55271458]
[1718673381228,0.45306317,3460.4,3459.2,2.89083]
[1718673381382,0.45306317,3460.4,3459.3,8.01147751]
[1718673381585,3.0,3460.8,3459.3,7.40746446]
[1718673381785,0.45303127,3460.4,3459.0,0.60401305]
[1718673382062,0.45303127,3460.4,3458.9,0.66183192]
[1718673382199,0.45303127,3460.4,3458.9,0.05781887]
[1718673382522,0.45303127,3460.4,3458.9,0.60401305]
[1718673382745,3.0,3460.3,3458.9,0.60401305]
[1718673383048,3.89530313,3460.2,3458.2,1.04998249]
[1718673383357,3.89530313,3460.2,3458.4,2.89149]
[1718673383554,3.89530313,3460.2,3458.4,6.8894]
[1718673384399,3.0,3459.7,3458.1,0.60401305]
[1718673384604,3.0,3459.7,3457.7,6.8894]
[1718673384605,3.55,3459.6,3457.7,7.49341305]
[1718673384845,3.0,3459.3,3457.7,7.49341305]
[1718673385028,3.0,3459.2,3457.6,0.60401305]
[1718673385203,3.0,3458.9,3457.4,0.1178051]
[1718673385403,0.55,3458.8,3457.5,2.8922]
[1718673385644,3.55,3458.8,3457.4,0.1178051]
[1718673385840,0.55,3458.8,3457.4,0.1178051]
[1718673386057,3.55,3458.8,3457.4,0.1178051]
[1718673386214,3.55,3458.8,3457.5,0.05783741]
[1718673386414,0.55,3458.8,3457.4,0.85214692]
[1718673386772,0.55,3459.1,3457.5,0.05783444]
[1718673386952,0.55,3459.1,3457.7,2.89202]
[1718673387248,3.0,3459.2,3457.9,2.89191]
[1718673387454,0.50027727,3459.9,3458.5,2.8914]
[1718673387603,0.45303127,3460.4,3458.6,0.05782202]
[1718673387946,0.45303127,3460.4,3458.6,2.94915098]
[1718673388342,3.45303127,3460.4,3458.7,2.89122]
[1718673388543,3.45303127,3460.4,3458.8,0.05781715]
[1718673388755,0.39532467,3460.3,3458.9,0.29490372]
[1718673389768,2.89036,3459.8,3458.9,0.29490372]
[1718673389971,2.89094,3459.1,3458.5,0.60401305]
[1718673390127,2.89103,3459.0,3458.5,0.60401305]
[1718673390328,2.89082,3459.3,3458.5,0.60401305]
[1718673390329,2.89081,3459.3,3458.5,0.60401305]
[1718673390727,2.89066,3459.5,3458.6,0.05781989]
[1718673390958,5.89048,3459.7,3458.8,2.89116]
[1718673391166,2.89052,3459.6,3458.7,0.35533029]
[1718673391371,3.0,3459.7,3458.7,0.35533029]
[1718673391372,3.0,3459.7,3459.0,2.891]
[1718673391667,2.89026,3459.9,3459.1,6.5304]
[1718673392170,0.45303127,3460.4,3459.5,2.89057]
[1718673392344,7.43,3460.7,3459.6,0.578132]
[1718673392674,2.88993,3460.3,3459.6,0.578132]
[1718673392835,2.89025,3460.0,3459.1,6.5304]
[1718673393176,2.89042,3459.7,3459.1,6.5304]
[1718673393326,2.89051,3459.6,3459.1,6.5304]
[1718673393529,2.89042,3459.7,3459.1,6.5304]
[1718673394593,2.89077,3459.3,3458.5,6.4204]
[1718673394880,3.0,3460.2,3458.6,2.89133]
[1718673394881,2.89056,3459.6,3458.6,2.89133]
[1718673395185,2.8906,3459.5,3458.6,2.89133]
[1718673395336,2.8906,3459.5,3458.7,0.931173]
[1718673395534,2.89067,3459.4,3458.7,0.931173]
[1718673396071,2.89026,3459.9,3458.8,2.89115]
[1718673396227,0.55,3459.8,3458.8,2.89115]
[1718673396428,3.55,3459.8,3458.8,2.89115]
[1718673396660,3.55,3459.8,3458.9,0.6713643]
[1718673397046,3.55,3459.8,3458.7,0.931173]
[1718673397366,2.89059,3459.5,3458.7,0.931173]
[1718673397531,2.89059,3459.5,3458.7,3.822423]
[1718673398557,0.55,3459.8,3458.3,2.89158]
[1718673398558,2.89097,3459.1,3458.3,2.89158]
[1718673398855,2.89097,3459.1,3458.1,2.89174]
[1718673399176,3.55,3459.8,3458.0,0.29497414]
[1718673399177,2.89102,3459.0,3458.0,0.29497414]
[1718673399403,0.55,3458.9,3457.5,2.89225]
[1718673399675,2.89134,3458.6,3457.6,1.23297051]
[1718673399847,2.89161,3458.3,3457.6,1.23297051]
[1718673400050,2.89134,3458.6,3457.6,1.23297051]
[1718673400241,2.89134,3458.6,3457.7,0.77780756]
[1718673400443,2.89146,3458.5,3457.7,0.77780756]
[1718673400645,5.89107,3459.0,3458.1,2.89176]
[1718673401041,3.0,3459.6,3458.2,2.89167]
[1718673401042,2.89092,3459.1,3458.2,2.89167]
[1718673401292,2.89092,3459.1,3458.1,2.89168]
[1718673401494,2.89092,3459.1,3458.2,0.578349]
[1718673401808,2.89076,3459.3,3458.2,3.470009]
[1718673401985,5.89084,3459.2,3458.3,2.94939427]
[1718673402148,3.0,3459.1,3458.4,6.4273]
[1718673402357,5.89093,3459.1,3458.4,6.4273]
[1718673402537,2.8908,3459.3,3458.4,6.4273]
[1718673402740,2.8908,3459.3,3458.5,0.931887]
[1718673403073,5.89056,3459.6,3458.5,0.98970991]
[1718673403280,2.89067,3459.4,3458.6,2.89133]
[1718673403585,2.89056,3459.6,3458.7,2.89125]
[1718673404077,2.89056,3459.6,3458.8,2.89116]
[1718673404286,5.83903319,3460.0,3458.5,3.823237]
[1718673404287,1.21382319,3460.0,3459.1,2.89091]
[1718673404668,2.89027,3459.9,3458.9,0.289116]
[1718673405163,2.89092,3459.2,3458.2,2.89166]
[1718673405974,2.89094,3459.1,3458.2,2.89166]
[1718673406553,0.50019489,3459.7,3458.5,2.89142]
[1718673406753,2.8905,3459.6,3458.7,2.89123]
[1718673407171,3.0,3459.5,3458.7,2.89123]
[1718673407349,0.50019489,3460.0,3459.0,2.89098]
[1718673407350,2.89027,3459.9,3459.0,2.89098]
[1718673407555,2.89017,3460.0,3459.2,2.89082]
[1718673408082,1.20789673,3460.1,3459.4,9.41305]
[1718673408290,1.20789673,3460.1,3459.5,0.05780524]
[1718673408790,2.88983,3460.5,3459.6,2.8905]
[1718673409090,10.3196,3460.7,3459.7,4.18431775]
[1718673409262,2.88967,3460.6,3459.8,0.05779985]
[1718673409779,2.88976,3460.5,3459.7,1.23613552]
[1718673410288,2.88976,3460.5,3459.7,4.12655552]
[1718673410489,2.88967,3460.6,3459.8,0.41265555]
[1718673410706,0.50001883,3461.1,3459.9,0.05779989]
[1718673411000,2.88919,3461.2,3460.4,2.88981]
[1718673411209,2.88903,3461.4,3460.5,9.44922892]
[1718673411701,2.88893,3461.5,3460.6,2.88966]
[1718673411928,2.889,3461.4,3460.7,0.05778501]
[1718673412393,5.88909,3461.3,3460.6,1.52287989]
[1718673414323,2.88899,3461.5,3460.7,0.057785]
[1718673415206,2.88899,3461.5,3460.6,1.52287989]
[1718673415207,3.0,3461.7,3460.6,1.52287989]
[1718673415366,2.88918,3461.2,3460.5,6.5017]
[1718673415564,2.88925,3461.1,3460.5,6.5017]
[1718673416209,0.84855735,3461.6,3460.5,6.5017]
[1718673417466,0.84855735,3461.6,3460.5,9.39144]
[1718673418167,0.84855735,3461.6,3460.5,6.5017]
[1718673418370,3.38485574,3461.5,3460.0,6.327]
[1718673418568,3.0,3461.4,3460.0,6.327]
[1718673418796,3.55,3461.4,3460.0,6.327]
[1718673419011,5.285,3461.4,3460.0,6.327]
[1718673419313,0.33205179,3461.3,3460.1,3.811803]
[1718673419481,5.285,3461.4,3460.3,2.88992]
[1718673419482,3.55,3461.4,3460.3,2.88992]
[1718673419686,3.55,3461.4,3460.1,0.921733]
[1718673419870,3.55,3461.4,3460.2,4.1929063]
[1718673420494,3.55,3461.4,3460.4,2.88983]
[1718673420666,0.29855735,3461.6,3460.5,0.05778962]
[1718673420871,1.735,3461.8,3460.5,0.05778962]
[1718673421205,0.29863769,3461.6,3460.6,2.88958]
[1718673421419,0.29863769,3461.6,3460.7,2.88955]
[1718673421617,3.0,3461.7,3460.7,0.05778562]
[1718673421798,3.0,3461.7,3460.9,2.88941]
[1718673422001,2.88,3461.9,3460.8,2.88949]
[1718673422002,3.0,3461.8,3460.8,2.88949]
[1718673422208,3.0,3461.8,3460.8,0.577904]
[1718673422504,3.0,3461.8,3460.9,2.88942]
[1718673422911,2.88,3461.9,3460.9,2.88942]
[1718673423214,0.45296164,3462.2,3461.0,6.80938005]
[1718673423379,3.0,3462.3,3461.1,1.0276704]
[1718673423591,3.0,3462.3,3461.2,0.0577754]
[1718673423781,3.0,3462.3,3461.1,1.0276704]
[1718673424085,7.43,3462.7,3461.2,0.05777541]